lending/lending_fUSD_20240411
["ID","MTS","AMOUNT","RATE_DAILY","PERIOD"]
[322172465,1712863848900,-12452.77,0.00027397,2]
[322172466,1712863848909,-500.0,0.00027397,2]
[322172467,1712863848918,-500.0,0.00027397,2]
[322172468,1712863848927,-500.0,0.00027397,2]
[322172469,1712863848937,-6184.21,0.00027397,2]
[322172470,1712863848946,-696.39,0.00027397,2]
[322172471,1712863848955,-549.55104394,0.00027397,2]
[322172472,1712863848964,-500.0,0.00027397,2]
[322172473,1712863848974,-4243.64,0.00027397,2]
[322172474,1712863848983,-500.0,0.00027397,2]
[322172475,1712863848992,-500.0,0.00027397,2]
[322172476,1712863849002,-500.0,0.00027397,2]
[322172477,1712863849011,-500.0,0.00027397,2]
[322172478,1712863849021,-1034.64,0.00027397,2]
[322172479,1712863849031,-500.0,0.00027397,2]
[322172480,1712863849040,-500.0,0.00027397,2]
[322172481,1712863849054,-500.0,0.00027397,2]
[322172482,1712863849063,-2762.12,0.00027397,2]
[322172483,1712863849072,-2525.19,0.00027397,2]
[322172484,1712863849081,-3638.97,0.00027397,2]
[322172485,1712863849090,-809.39,0.00027397,2]
[322172486,1712863849099,-500.0,0.00027397,2]
[322172487,1712863849108,-6755.28,0.00027397,2]
[322172488,1712863849117,-500.0,0.00027397,2]
[322172489,1712863849127,-500.0,0.00027397,2]
[322172490,1712863849136,-3313.18,0.00027397,2]
[322172491,1712863849145,-3298.66,0.00027397,2]
[322172492,1712863849155,-2090.96,0.00027397,2]
[322172493,1712863849164,-3316.05,0.00027397,2]
[322172494,1712863849173,-500.0,0.00027397,2]
[322172495,1712863849183,-500.0,0.00027397,2]
[322172496,1712863849193,-2581.64,0.00027397,2]
[322172497,1712863849202,-500.0,0.00027397,2]
[322172498,1712863849211,-500.0,0.00027397,2]
[322172499,1712863849221,-500.0,0.00027397,2]
[322172500,1712863849231,-500.0,0.00027397,2]
[322172501,1712863849240,-2873.47,0.00027397,2]
[322172502,1712863849250,-500.0,0.00027397,2]
[322172503,1712863849260,-1789.61,0.00027397,2]
[322172504,1712863849273,-2480.74,0.00027397,2]
[322172505,1712863849282,-1598.84,0.00027397,2]
[322172506,1712863849293,-500.0,0.00027397,2]
[322172507,1712863849305,-14422.58,0.00027397,2]
[322172508,1712863849314,-5953.17,0.00027397,2]
[322172509,1712863849324,-500.0,0.00027397,2]
[322172510,1712863849334,-563.33275822,0.00027397,2]
[322172511,1712863849344,-500.0,0.00027397,2]
[322172512,1712863849354,-737.57,0.00027397,2]
[322172513,1712863849364,-1652.71,0.00027397,2]
[322172514,1712863849374,-589.61054551,0.00027397,2]
[322172515,1712863849384,-500.0,0.00027397,2]
[322172516,1712863849393,-7074.56,0.00027397,2]
[322172517,1712863849403,-500.0,0.00027397,2]
[322172518,1712863849413,-1619.98,0.00027397,2]
[322172519,1712863849423,-2162.99,0.00027397,2]
[322172520,1712863849433,-1306.7,0.00027397,2]
[322172521,1712863849442,-500.0,0.00027397,2]
[322172522,1712863849452,-2584.49,0.00027397,2]
[322172523,1712863849461,-500.0,0.00027397,2]
[322172524,1712863849471,-2631.69,0.00027397,2]
[322172525,1712863849481,-500.0,0.00027397,2]
[322172526,1712863849490,-10781.75,0.00027397,2]
[322172527,1712863849500,-535.08757644,0.00027397,2]
[322172528,1712863849509,-2228.38,0.00027397,2]
[322172529,1712863849518,-2141.81,0.00027397,2]
[322172530,1712863849528,-1182.41,0.00027397,2]
[322172531,1712863849538,-547.08,0.00027397,2]
[322172532,1712863849550,-1593.8,0.00027397,2]
[322172533,1712863849560,-500.0,0.00027397,2]
[322172534,1712863849569,-1388.34,0.00027397,2]
[322172535,1712863849579,-500.0,0.00027397,2]
[322172536,1712863849598,-4975.16,0.00027397,2]
[322172537,1712863849613,-500.0,0.00027397,2]
[322172538,1712863849622,-500.0,0.00027397,2]
[322172539,1712863849632,-500.0,0.00027397,2]
[322172540,1712863849642,-500.0,0.00027397,2]
[322172541,1712863849653,-500.0,0.00027397,2]
[322172542,1712863849662,-3398.13,0.00027397,2]
[322172543,1712863849673,-500.0,0.00027397,2]
[322172544,1712863849682,-4052.06,0.00027397,2]
[322172545,1712863849694,-500.0,0.00027397,2]
[322172546,1712863849704,-3587.71,0.00027397,2]
[322172547,1712863849714,-500.0,0.00027397,2]
[322172548,1712863849724,-500.0,0.00027397,2]
[322172549,1712863849734,-2718.79,0.00027397,2]
[322172550,1712863849743,-538.59,0.00027397,2]
[322172551,1712863849753,-500.0,0.00027397,2]
[322172552,1712863849763,-500.0,0.00027397,2]
[322172553,1712863849772,-643.87,0.00027397,2]
[322172554,1712863849783,-1944.58,0.00027397,2]
[322172555,1712863849798,-500.0,0.00027397,2]
[322172556,1712863849808,-500.0,0.00027397,2]
[322172557,1712863849817,-3239.59,0.00027397,2]
[322172558,1712863849827,-500.0,0.00027397,2]
[322172559,1712863849837,-640.82,0.00027397,2]
[322172560,1712863849846,-741.23,0.00027397,2]
[322172561,1712863849856,-500.0,0.00027397,2]
[322172562,1712863849865,-2450.14,0.00027397,2]
[322172563,1712863849875,-1379.62,0.00027397,2]
[322172564,1712863849885,-500.0,0.00027397,2]
[322172565,1712863849895,-500.0,0.00027397,2]
[322172566,1712863849904,-1028.85,0.00027397,2]
[322172567,1712863849914,-5944.87,0.00027397,2]
[322172568,1712863849923,-2132.08,0.00027397,2]
[322172569,1712863849933,-1280.64,0.00027397,2]
[322172570,1712863849943,-1028.51,0.00027397,2]
[322172571,1712863849952,-4562.38,0.00027397,2]
[322172572,1712863849963,-7074.77,0.00027397,2]
[322172573,1712863849973,-500.0,0.00027397,2]
[322172574,1712863849983,-6825.13,0.00027397,2]
[322172575,1712863849992,-500.0,0.00027397,2]
[322172576,1712863850002,-3134.26,0.00027397,2]
[322172577,1712863850012,-2368.31,0.00027397,2]
[322172578,1712863850022,-15352.07,0.00027397,2]
[322172579,1712863850032,-1225.72,0.00027397,2]
[322172580,1712863850042,-500.0,0.00027397,2]
[322172581,1712863850055,-1114.66,0.00027397,2]
[322172582,1712863850065,-1085.38,0.00027397,2]
[322172583,1712863850075,-757.5,0.00027397,2]
[322172584,1712863850086,-500.0,0.00027397,2]
[322172585,1712863850096,-1240.17,0.00027397,2]
[322172586,1712863850105,-3289.28,0.00027397,2]
[322172587,1712863850115,-3479.62,0.00027397,2]
[322172588,1712863850125,-500.0,0.00027397,2]
[322172589,1712863850135,-4609.28,0.00027397,2]
[322172590,1712863850145,-586.73,0.00027397,2]
[322172591,1712863850155,-776.88,0.00027397,2]
[322172592,1712863850165,-1626.2,0.00027397,2]
[322172593,1712863850175,-500.0,0.00027397,2]
[322172594,1712863850186,-20099.39,0.00027397,2]
[322172595,1712863850195,-851.06,0.00027397,2]
[322172596,1712863850205,-1308.93,0.00027397,2]
[322172597,1712863850214,-25741.65,0.00027397,2]
[322172598,1712863850224,-3018.25,0.00027397,2]
[322172599,1712863850233,-2048.9,0.00027397,2]
[322172600,1712863850243,-500.0,0.00027397,2]
[322172601,1712863850257,-3588.33,0.00027397,2]
[322172602,1712863850268,-500.0,0.00027397,2]
[322172603,1712863850278,-3107.63,0.00027397,2]
[322172604,1712863850288,-1051.67,0.00027397,2]
[322172605,1712863850301,-500.0,0.00027397,2]
[322172606,1712863850311,-500.0,0.00027397,2]
[322172607,1712863850321,-1592.05,0.00027397,2]
[322172608,1712863850331,-2374.36,0.00027397,2]
[322172609,1712863850341,-2534.14,0.00027397,2]
[322172610,1712863850351,-500.0,0.00027397,2]
[322172611,1712863850361,-19452.39,0.00027397,2]
[322172612,1712863850371,-505.91,0.00027397,2]
[322172613,1712863850381,-500.0,0.00027397,2]
[322172614,1712863850392,-527.81,0.00027397,2]
[322172615,1712863850402,-3020.3,0.00027397,2]
[322172616,1712863850412,-7446.86,0.00027397,2]
[322172617,1712863850422,-1495.54,0.00027397,2]
[322172618,1712863850432,-500.0,0.00027397,2]
[322172619,1712863850442,-2700.11,0.00027397,2]
[322172620,1712863850452,-614.49,0.00027397,2]
[322172621,1712863850462,-1142.49,0.00027397,2]
[322172622,1712863850472,-507.60945149,0.00027397,2]
[322172623,1712863850483,-500.0,0.00027397,2]
[322172624,1712863850493,-500.0,0.00027397,2]
[322172625,1712863850503,-500.0,0.00027397,2]
[322172626,1712863850513,-8843.49,0.00027397,2]
[322172627,1712863850523,-682.27,0.00027397,2]
[322172628,1712863850536,-2651.73,0.00027397,2]
[322172629,1712863850550,-527.31531261,0.00027397,2]
[322172630,1712863850560,-18815.4,0.00027397,2]
[322172631,1712863850570,-500.0,0.00027397,2]
[322172632,1712863850581,-54176.01,0.00027397,2]
[322172633,1712863850596,-500.0,0.00027397,2]
[322172634,1712863850606,-3784.62,0.00027397,2]
[322172635,1712863850616,-1593.95,0.00027397,2]
[322172636,1712863850626,-500.0,0.00027397,2]
[322172637,1712863850636,-8906.82,0.00027397,2]
[322172638,1712863850646,-510.47901797,0.00027397,2]
[322172639,1712863850656,-4300.73,0.00027397,2]
[322172640,1712863850666,-631.27,0.00027397,2]
[322172641,1712863850676,-277.11133044,0.00027397,2]
[322172642,1712863850686,-596.57,0.00027397,2]
[322172643,1712863850696,-500.0,0.00027397,2]
[322172644,1712863850706,-500.0,0.00027397,2]
[322172645,1712863850716,-4603.8,0.00027397,2]
[322172646,1712863850726,-2116.62,0.00027397,2]
[322172647,1712863850736,-4305.06,0.00027397,2]
[322172648,1712863850745,-821.16,0.00027397,2]
[322172649,1712863850756,-6457.93,0.00027397,2]
[322172650,1712863850766,-500.0,0.00027397,2]
[322172651,1712863850776,-1483.72,0.00027397,2]
[322172652,1712863850785,-500.0,0.00027397,2]
[322172653,1712863850799,-500.0,0.00027397,2]
[322172654,1712863850810,-500.0,0.00027397,2]
[322172655,1712863850821,-5042.1,0.00027397,2]
[322172656,1712863850831,-690.55,0.00027397,2]
[322172657,1712863850842,-500.0,0.00027397,2]
[322172658,1712863850852,-812.85,0.00027397,2]
[322172659,1712863850863,-2960.07,0.00027397,2]
[322172660,1712863850873,-500.0,0.00027397,2]
[322172661,1712863850883,-500.0,0.00027397,2]
[322172662,1712863850893,-500.0,0.00027397,2]
[322172663,1712863850904,-259.03325042,0.00027397,2]
[322172664,1712863850914,-500.0,0.00027397,2]
[322172665,1712863850924,-4454.49,0.00027397,2]
[322172666,1712863850935,-500.0,0.00027397,2]
[322172667,1712863850945,-5647.2,0.00027397,2]
[322172668,1712863850955,-2440.94,0.00027397,2]
[322172669,1712863850965,-500.0,0.00027397,2]
[322172670,1712863850975,-1308.46,0.00027397,2]
[322172671,1712863850985,-748.44,0.00027397,2]
[322172672,1712863850995,-500.0,0.00027397,2]
[322172673,1712863851005,-500.0,0.00027397,2]
[322172674,1712863851016,-849.93,0.00027397,2]
[322172675,1712863851026,-9726.64,0.00027397,2]
[322172676,1712863851035,-500.0,0.00027397,2]
[322172677,1712863851047,-500.0,0.00027397,2]
[322172678,1712863851057,-511.69416299,0.00027397,2]
[322172679,1712863851068,-3590.29,0.00027397,2]
[322172680,1712863851079,-500.0,0.00027397,2]
[322172681,1712863851089,-3226.22,0.00027397,2]
[322172682,1712863851099,-501.06,0.00027397,2]
[322172683,1712863851110,-500.0,0.00027397,2]
[322172684,1712863851120,-500.0,0.00027397,2]
[322172685,1712863851130,-769.9,0.00027397,2]
[322172686,1712863851140,-7238.93,0.00027397,2]
[322172687,1712863851150,-837.7,0.00027397,2]
[322172688,1712863851160,-500.0,0.00027397,2]
[322172689,1712863851169,-866.14,0.00027397,2]
[322172690,1712863851179,-500.0,0.00027397,2]
[322172691,1712863851188,-500.0,0.00027397,2]
[322172692,1712863851198,-500.0,0.00027397,2]
[322172693,1712863851208,-2879.46,0.00027397,2]
[322172694,1712863851217,-500.0,0.00027397,2]
[322172695,1712863851227,-3278.69,0.00027397,2]
[322172696,1712863851236,-500.0,0.00027397,2]
[322172697,1712863851246,-1814.55,0.00027397,2]
[322172698,1712863851257,-34421.11,0.00027397,2]
[322172699,1712863851267,-1644.22,0.00027397,2]
[322172700,1712863851276,-500.0,0.00027397,2]
[322172701,1712863851286,-500.0,0.00027397,2]
[322172702,1712863851297,-500.0,0.00027397,2]
[322172703,1712863851307,-500.0,0.00027397,2]
[322172704,1712863851316,-500.0,0.00027397,2]
[322172705,1712863851326,-325.58727512,0.00027397,2]
[322172706,1712863851336,-500.0,0.00027397,2]
[322172707,1712863851353,-500.0,0.00027397,2]
[322172708,1712863851368,-500.0,0.00027397,2]
[322172709,1712863851380,-689.01,0.00027397,2]
[322172710,1712863851671,-984.54,0.00027397,2]
[322172711,1712863851681,-3327.03,0.00027397,2]
[322172712,1712863851691,-795.68,0.00027397,2]
[322172713,1712863851701,-500.0,0.00027397,2]
[322172714,1712863851710,-500.0,0.00027397,2]
[322172715,1712863851720,-1110.72,0.00027397,2]
[322172716,1712863851729,-6971.64,0.00027397,2]
[322172717,1712863851738,-4548.52,0.00027397,2]
[322172718,1712863851748,-1689.02,0.00027397,2]
[322172719,1712863851757,-4131.95,0.00027397,2]
[322172720,1712863851767,-500.0,0.00027397,2]
[322172721,1712863851776,-500.0,0.00027397,2]
[322172722,1712863851785,-1399.8,0.00027397,2]
[322172723,1712863851796,-588.2,0.00027397,2]
[322172724,1712863851807,-502.99666899,0.00027397,2]
[322172725,1712863851816,-500.0,0.00027397,2]
[322172726,1712863851825,-2132.57,0.00027397,2]
[322172727,1712863851835,-500.0,0.00027397,2]
[322172728,1712863851844,-2460.93,0.00027397,2]
[322172729,1712863851854,-365.1173045,0.00027397,2]
[322172730,1712863851863,-500.0,0.00027397,2]
[322172731,1712863851873,-500.0,0.00027397,2]
[322172732,1712863851882,-500.0,0.00027397,2]
[322172733,1712863851891,-3570.47,0.00027397,2]
[322172734,1712863851901,-940.49,0.00027397,2]
[322172735,1712863851910,-1384.5,0.00027397,2]
[322172736,1712863851920,-523.38,0.00027397,2]
[322172737,1712863851929,-5204.76,0.00027397,2]
[322172738,1712863851939,-7694.44,0.00027397,2]
[322172739,1712863851948,-500.0,0.00027397,2]
[322172740,1712863851959,-500.0,0.00027397,2]
[322172741,1712863851968,-12079.87,0.00027397,2]
[322172742,1712863851977,-6684.72,0.00027397,2]
[322172743,1712863851987,-500.0,0.00027397,2]
[322172744,1712863851996,-526.39,0.00027397,2]
[322172745,1712863852006,-5671.76,0.00027397,2]
[322172746,1712863852016,-500.0,0.00027397,2]
[322172747,1712863852026,-2162.52,0.00027397,2]
[322172748,1712863852036,-500.0,0.00027397,2]
[322172749,1712863852046,-500.0,0.00027397,2]
[322172750,1712863852055,-2445.18,0.00027397,2]
[322172751,1712863852065,-3880.76,0.00027397,2]
[322172752,1712863852075,-500.0,0.00027397,2]
[322172753,1712863852084,-521.06229654,0.00027397,2]
[322172754,1712863852093,-500.0,0.00027397,2]
[322172755,1712863852103,-3432.24,0.00027397,2]
[322172756,1712863852113,-500.0,0.00027397,2]
[322172757,1712863852122,-730.94,0.00027397,2]
[322172758,1712863852132,-522.24468927,0.00027397,2]
[322172759,1712863852141,-534.08,0.00027397,2]
[322172760,1712863852150,-676.92,0.00027397,2]
[322172761,1712863852160,-500.0,0.00027397,2]
[322172762,1712863852170,-2554.06,0.00027397,2]
[322172763,1712863852181,-500.0,0.00027397,2]
[322172764,1712863852192,-500.0,0.00027397,2]
[322172765,1712863852201,-2590.36,0.00027397,2]
[322172766,1712863852211,-1131.02,0.00027397,2]
[322172767,1712863852221,-1707.21,0.00027397,2]
[322172768,1712863852231,-2283.61,0.00027397,2]
[322172769,1712863852240,-7140.03,0.00027397,2]
[322172770,1712863852252,-500.0,0.00027397,2]
[322172771,1712863852262,-615.11,0.00027397,2]
[322172772,1712863852272,-500.0,0.00027397,2]
[322172773,1712863852281,-731.31,0.00027397,2]
[322172774,1712863852291,-500.0,0.00027397,2]
[322172775,1712863852302,-5613.0,0.00027397,2]
[322172776,1712863852312,-1489.13,0.00027397,2]
[322172777,1712863852323,-500.0,0.00027397,2]
[322172778,1712863852334,-500.0,0.00027397,2]
[322172779,1712863852345,-500.0,0.00027397,2]
[322172780,1712863852357,-585.96,0.00027397,2]
[322172781,1712863852366,-500.0,0.00027397,2]
[322172782,1712863852376,-500.0,0.00027397,2]
[322172783,1712863852387,-500.0,0.00027397,2]
[322172784,1712863852396,-11078.41,0.00027397,2]
[322172785,1712863852406,-500.0,0.00027397,2]
[322172786,1712863852417,-2508.39,0.00027397,2]
[322172787,1712863852427,-2129.83,0.00027397,2]
[322172788,1712863852438,-1856.58,0.00027397,2]
[322172789,1712863852447,-500.0,0.00027397,2]
[322172790,1712863852456,-1073.6,0.00027397,2]
[322172791,1712863852466,-4134.48,0.00027397,2]
[322172792,1712863852475,-554.68,0.00027397,2]
[322172793,1712863852484,-4212.13,0.00027397,2]
[322172794,1712863852494,-3469.4,0.00027397,2]
[322172795,1712863852503,-500.0,0.00027397,2]
[322172796,1712863852513,-563.5,0.00027397,2]
[322172797,1712863852522,-8111.23,0.00027397,2]
[322172798,1712863852531,-644.22,0.00027397,2]
[322172799,1712863852540,-500.0,0.00027397,2]
[322172800,1712863852551,-526.02,0.00027397,2]
[322172801,1712863852560,-500.0,0.00027397,2]
[322172802,1712863852569,-500.0,0.00027397,2]
[322172803,1712863852579,-500.0,0.00027397,2]
[322172804,1712863852590,-500.0,0.00027397,2]
[322172805,1712863852600,-609.54,0.00027397,2]
[322172806,1712863852622,-601.52,0.000274,2]
[322172807,1712863852631,-290.40318471,0.00027481,2]
[322172808,1712863852642,-236.11118748,0.00027481,2]
[322172809,1712863852651,-500.0,0.00027481,2]
[322172810,1712863852661,-570.14863876,0.00027481,2]
[322172811,1712863852671,-4610.41930142,0.00027482,2]
[322172812,1712863852681,-3527.4826107,0.00027482,2]
[322172813,1712863852690,-6213.55879472,0.00027521,2]
[322172814,1712863852699,-153.90892363,0.00027553,2]
[322172815,1712863852709,-331.62835527,0.00027669,2]
[322172816,1712863852717,-202.30351054,0.00027669,2]
[322172817,1712863852727,-163.90456027,0.0002767,2]
[322172818,1712863852736,-1182.71,0.0002767,2]
[322172819,1712863852746,-1182.71,0.0002767,2]
[322172820,1712863852757,-1182.71,0.0002767,2]
[322172821,1712863852766,-500.0,0.00027671,2]
[322172822,1712863852775,-500.0,0.00027671,2]
[322172823,1712863852784,-500.0,0.00027671,2]
[322172824,1712863852794,-500.0,0.00027671,2]
[322172825,1712863852803,-500.0,0.00027671,2]
[322172826,1712863852813,-508.38316532,0.00027671,2]
[322172827,1712863852823,-500.0,0.00027671,2]
[322172828,1712863852832,-500.0,0.00027671,2]
[322172829,1712863852842,-545.9941456,0.00027671,2]
[322172830,1712863852851,-188.64360148,0.00027671,2]
[322172831,1712863852861,-500.0,0.00027671,2]
[322172832,1712863852871,-586.58864606,0.00027671,2]
[322172833,1712863852882,-500.0,0.00027671,2]
[322172834,1712863852892,-558.78,0.00027671,2]
[322172835,1712863852901,-500.0,0.00027671,2]
[322172836,1712863852911,-501.96579492,0.00027671,2]
[322172837,1712863852920,-500.0,0.00027671,2]
[322172838,1712863852930,-781.35,0.00027671,2]
[322172839,1712863852939,-500.0,0.00027671,2]
[322172840,1712863852950,-500.0,0.00027671,2]
[322172841,1712863852959,-577.97,0.00027671,2]
[322172842,1712863852969,-500.0,0.00027671,2]
[322172843,1712863852978,-500.0,0.00027671,2]
[322172844,1712863852988,-508.83,0.00027671,2]
[322172845,1712863852997,-500.0,0.00027671,2]
[322172846,1712863853007,-616.34,0.00027671,2]
[322172847,1712863853016,-536.87556007,0.00027671,2]
[322172848,1712863853026,-500.0,0.00027671,2]
[322172849,1712863853035,-500.0,0.00027671,2]
[322172850,1712863853046,-500.0,0.00027671,2]
[322172851,1712863853055,-500.0,0.00027671,2]
[322172852,1712863853064,-500.0,0.00027671,2]
[322172853,1712863853074,-500.0,0.00027671,2]
[322172854,1712863853083,-500.0,0.00027671,2]
[322172855,1712863853092,-500.0,0.00027671,2]
[322172856,1712863853102,-500.0,0.00027671,2]
[322172857,1712863853111,-500.0,0.00027671,2]
[322172858,1712863853121,-618.71062598,0.00027671,2]
[322172859,1712863853130,-500.0,0.00027671,2]
[322172860,1712863853139,-500.0,0.00027671,2]
[322172861,1712863853149,-500.0,0.00027671,2]
[322172862,1712863853158,-500.0,0.00027671,2]
[322172863,1712863853167,-500.0,0.00027671,2]
[322172864,1712863853176,-500.0,0.00027671,2]
[322172865,1712863853186,-678.48,0.00027671,2]
[322172866,1712863853195,-979.68,0.00027671,2]
[322172867,1712863853206,-500.0,0.00027671,2]
[322172868,1712863853216,-500.0,0.00027671,2]
[322172869,1712863853225,-500.0,0.00027671,2]
[322172870,1712863853235,-500.0,0.00027671,2]
[322172871,1712863853246,-500.0,0.00027671,2]
[322172872,1712863853256,-500.0,0.00027671,2]
[322172873,1712863853265,-500.0,0.00027671,2]
[322172874,1712863853275,-500.0,0.00027671,2]
[322172875,1712863853284,-500.0,0.00027671,2]
[322172876,1712863853294,-500.0,0.00027671,2]
[322172877,1712863853303,-539.25,0.00027671,2]
[322172878,1712863853312,-956.96,0.00027671,2]
[322172879,1712863853322,-730.66,0.00027671,2]
[322172880,1712863853331,-500.0,0.00027671,2]
[322172881,1712863853340,-520.74,0.00027671,2]
[322172882,1712863853349,-500.0,0.00027671,2]
[322172883,1712863853359,-582.63,0.00027671,2]
[322172884,1712863853368,-500.0,0.00027671,2]
[322172885,1712863853378,-500.0,0.00027671,2]
[322172886,1712863853389,-500.0,0.00027671,2]
[322172887,1712863853398,-500.0,0.00027671,2]
[322172888,1712863853409,-1271.89,0.00027671,2]
[322172889,1712863853420,-500.0,0.00027671,2]
[322172890,1712863853430,-500.0,0.00027671,2]
[322172891,1712863853443,-560.31630542,0.00027671,2]
[322172892,1712863853454,-661.97,0.00027671,2]
[322172893,1712863853463,-500.0,0.00027671,2]
[322172894,1712863853473,-500.0,0.00027671,2]
[322172895,1712863853483,-500.0,0.00027671,2]
[322172896,1712863853494,-500.0,0.00027671,2]
[322172897,1712863853504,-500.0,0.00027671,2]
[322172898,1712863853515,-500.0,0.00027671,2]
[322172899,1712863853525,-500.0,0.00027671,2]
[322172900,1712863853536,-500.0,0.00027671,2]
[322172901,1712863853546,-500.0,0.00027671,2]
[322172902,1712863853557,-500.0,0.00027671,2]
[322172903,1712863853567,-598.1,0.00027671,2]
[322172904,1712863853577,-500.0,0.00027671,2]
[322172905,1712863853589,-500.0,0.00027671,2]
[322172906,1712863853600,-500.0,0.00027671,2]
[322172907,1712863853610,-500.0,0.00027671,2]
[322172908,1712863853619,-500.0,0.00027671,2]
[322172909,1712863853630,-500.0,0.00027671,2]
[322172910,1712863853641,-500.0,0.00027671,2]
[322172911,1712863853652,-500.0,0.00027671,2]
[322172912,1712863853662,-500.0,0.00027671,2]
[322172913,1712863853672,-500.0,0.00027671,2]
[322172914,1712863853682,-735.6,0.00027671,2]
[322172915,1712863853691,-500.0,0.00027671,2]
[322172916,1712863853702,-500.0,0.00027671,2]
[322172917,1712863853712,-724.36,0.00027671,2]
[322172918,1712863853722,-500.0,0.00027671,2]
[322172919,1712863853734,-500.0,0.00027671,2]
[322172920,1712863853745,-500.0,0.00027671,2]
[322172921,1712863853755,-500.0,0.00027671,2]
[322172922,1712863853765,-500.0,0.00027671,2]
[322172923,1712863853776,-500.0,0.00027671,2]
[322172924,1712863853786,-500.0,0.00027671,2]
[322172925,1712863853796,-500.0,0.00027671,2]
[322172926,1712863853804,-662.41,0.00027671,2]
[322172927,1712863853813,-500.0,0.00027671,2]
[322172928,1712863853822,-500.0,0.00027671,2]
[322172929,1712863853832,-500.0,0.00027671,2]
[322172930,1712863853844,-621.67810956,0.00027671,2]
[322172931,1712863853854,-521.59184694,0.00027671,2]
[322172932,1712863853864,-500.0,0.00027671,2]
[322172933,1712863853874,-500.0,0.00027671,2]
[322172934,1712863853886,-500.0,0.00027671,2]
[322172935,1712863853895,-500.0,0.00027671,2]
[322172936,1712863853905,-500.0,0.00027671,2]
[322172937,1712863853914,-500.0,0.00027671,2]
[322172938,1712863853925,-645.77,0.00027671,2]
[322172939,1712863853935,-500.0,0.00027671,2]
[322172940,1712863853944,-630.18,0.00027671,2]
[322172941,1712863853954,-500.0,0.00027671,2]
[322172942,1712863853964,-500.0,0.00027671,2]
[322172943,1712863853974,-538.93,0.00027671,2]
[322172944,1712863853984,-500.0,0.00027671,2]
[322172945,1712863854065,-1170.3,0.00027671,2]
[322172946,1712863854075,-500.0,0.00027671,2]
[322172947,1712863854085,-500.0,0.00027671,2]
[322172948,1712863854094,-500.0,0.00027671,2]
[322172949,1712863854103,-500.0,0.00027671,2]
[322172950,1712863854112,-500.0,0.00027671,2]
[322172951,1712863854122,-500.0,0.00027671,2]
[322172952,1712863854131,-500.0,0.00027671,2]
[322172953,1712863854141,-622.48,0.00027671,2]
[322172954,1712863854150,-500.0,0.00027671,2]
[322172955,1712863854161,-500.0,0.00027671,2]
[322172956,1712863854171,-500.0,0.00027671,2]
[322172957,1712863854180,-618.24337132,0.00027671,2]
[322172958,1712863854189,-881.06,0.00027671,2]
[322172959,1712863854199,-776.07,0.00027671,2]
[322172960,1712863854209,-500.0,0.00027671,2]
[322172961,1712863854218,-500.0,0.00027671,2]
[322172962,1712863854227,-500.0,0.00027671,2]
[322172963,1712863854237,-500.0,0.00027671,2]
[322172964,1712863854247,-311.5290067,0.00027671,2]